Cogmind - Beta 16.1 @@@ ROGUE MODE // 2026.04.06 @ 00:50:44 Player: gamerman Result: Destroyed by DC-POO(R) with Subdweller Beam Cannon Performance ------------- Evolutions (0) 0 Regions Visited (3) 600 Robots Destroyed (12) 60 Value Destroyed (257) 257 Prototype IDs (2) 40 Alien Tech Used (0) 0 Bonus (119) 119 TOTAL SCORE: 1076 Bonus ------- Follower Combat Kills 119 Cogmind --------- Core Integrity 0/250 Matter 300/300 Energy 100/100 System Corruption 0% Temperature Cool (9) Movement Core (100) Ox1 Location -10/Subcaves Parts ------- > --- POWER (1) -------- (None) > --- PROPULSION (2) --- (None) > --- UTILITY (2) ------ Small Storage Unit Signal Interpreter > --- WEAPON (2) ------- (None) > --- INVENTORY (8) ---- Flight Unit Flight Unit Flight Unit Flight Unit Improved Heat Sink Faulty Experimental Sensor Array Scrap Shield Peak State ------------ > --- POWER ------------ Light Ion Engine > --- PROPULSION ------- Light Treads Light Treads > --- UTILITY ---------- Small Storage Unit Signal Interpreter > --- WEAPON ----------- EM Pulse Gun Assault Rifle > --- INVENTORY -------- Flight Unit Flight Unit Flight Unit Flight Unit Improved Heat Sink Experimental Sensor Array Scrap Shield [Rating: 9] Favorites ----------- Power Ion Engine Engine Ion Engine Propulsion Light Treads Treads Light Treads Utility Small Storage Unit Storage Small Storage Unit Processor Signal Interpreter Protection Light Armor Plating Weapon Assault Rifle Energy Gun EM Pulse Gun Ballistic Gun Assault Rifle Build | -11 -10 -10 -10 ------- Run | Yrd Mat Min Sub Slots Evolved . | . . . . Power . | . . . . Propulsion . | . . . . Utility . | . . . . Weapon . | . . . . Parts Attached 9 | 7 2 . . Power 2 | 2 . . . Engine 2 | 2 . . . Core . | . . . . Reactor . | . . . . Propulsion 2 | 2 . . . Treads 2 | 2 . . . Leg . | . . . . Wheel . | . . . . Hover . | . . . . Flight . | . . . . Utility 3 | 1 2 . . Device . | . . . . Storage 1 | 1 . . . Processor 1 | . 1 . . Hackware . | . . . . Protection 1 | . 1 . . Artifact . | . . . . Weapon 2 | 2 . . . Energy Gun 1 | 1 . . . Energy Cannon . | . . . . Ballistic Gun 1 | 1 . . . Ballistic Cannon . | . . . . Launcher . | . . . . Special Weapon . | . . . . Impact Weapon . | . . . . Slashing Weapon . | . . . . Piercing Weapon . | . . . . Special Melee Weapon . | . . . . Unidentified Prototypes . | . . . . Parts Lost 5 | . . . 5 Power 1 | . . . 1 Propulsion 2 | . . . 2 Utility . | . . . . Weapon 2 | . . . 2 Highest Loss Streak 5 | . . . 5 To Critical Strikes 1 | . . . 1 Average Backups 5 | . 3 7 7 Power . | . 1 1 . Propulsion 2 | . 1 4 4 Utility 2 | . . 2 3 Weapon . | . . . . Tool/Special . | . . . . Unused Backups 7 | . . . 7 Power . | . . . . Propulsion 4 | . . . 4 Utility 3 | . . . 3 Weapon . | . . . . Tool/Special . | . . . . Average Slot Usage (%) 98 | . 97 100 98 Engine 14 | . 14 14 14 Treads 28 | . 28 28 28 Storage 13 | . 12 14 14 Processor 11 | . 6 14 14 Protection 2 | . 6 . . Energy Gun 13 | . 14 14 13 Ballistic Gun 13 | . 14 14 13 Peak Build Rating 9 | 6 7 8 9 Average Rating 7 | 4 6 7 8 On Entrance 5 | . 6 7 8 Avg Prop Armor Cover (%) 30 | . . . 30 Naked Turns . | . . . . Heaviest Build 17 | 14 17 14 14 Greatest Support 40 | 40 40 40 40 Greatest Overweight (x) 2 | . . . 2 Average Overweight (x) . | . . . . Largest Inventory Capacity 8 | 8 8 8 8 Average Capacity 7 | 7 7 8 8 Most Carried 8 | 1 7 8 8 Average Carried 6 | . 3 7 7 Final Capacity 8 | 8 8 8 8 Final Carried 8 | 1 7 8 8 Class Distribution -------------------- 100% | Mutant Dominant Class ---------------- Mutant | -10/Materials Mutant | -10/Mines Mutant | -10/Subcaves Resources | -11 -10 -10 -10 ----------- Run | Yrd Mat Min Sub Matter Collected 415 | 197 175 33 10 Remotely . | . . . . Salvage Created 413 | . 283 130 . Parts 29 | . 21 8 . Haulers Intercepted 2 | . 2 . . Recyclers Shooed . | . . . . Parts Field Recycled . | . . . . Retrieved Matter . | . . . . Parts Self-Destructed . | . . . . Prevented . | . . . . Parts Restored . | . . . . Kills | -11 -10 -10 -10 ------- Run | Yrd Mat Min Sub Combat Hostiles Destroyed 8 | . 5 3 . Guns 6 | . 5 1 . AOE 2 | . . 2 . Classes Destroyed 5 | . 4 1 . Worker 1 | . . 1 . Hauler 2 | . 2 . . Watcher 1 | . 1 . . Swarmer 3 | . 3 . . Grunt 5 | . 2 3 . Best Kill Streak 3 | . 3 2 . Combat Bots Only 3 | . 3 2 . Max Kills in Single Turn 2 | . 1 2 . Gunslinging . | . . . . Exploded 2 | . . 2 . Melee . | . . . . Uniques/NPCs Destroyed . | . . . . Combat | -11 -10 -10 -10 -------- Run | Yrd Mat Min Sub Hostile Shots Fired 57 | . 25 9 23 Missed 12 | . 6 3 3 Hits 45 | . 19 6 20 Projectile 45 | . 19 6 20 AOE 1 | . . 1 . Critical Strikes 1 | . . . 1 Damage Taken 849 | . 221 120 508 Core 258 | . 65 35 158 Absorbed by Shields . | . . . . Core Remaining (%) 100 | 100 . . . Volleys Fired 37 | . 27 8 2 Largest 2 | . 2 2 2 Hottest 60 | . 60 60 60 Shots Fired 73 | . 54 16 3 Gun 73 | . 54 16 3 Cannon . | . . . . Launcher . | . . . . Special . | . . . . Kinetic 37 | . 27 8 2 Thermal . | . . . . Explosive . | . . . . Electromagnetic 36 | . 27 8 1 Robot Hit Streak 8 | . 8 7 1 Robot Miss Streak 3 | . 3 1 2 Penetration Max . | . . . . Secondary Targets . | . . . . Shots Hit Robots 47 | . 34 12 1 Core Hits 18 | . 13 5 . Critical Kills . | . . . . Critical Parts Destroyed . | . . . . Critical Strikes . | . . . . Melee Attacks . | . . . . Impact . | . . . . Slashing . | . . . . Piercing . | . . . . Sneak Attacks . | . . . . Combat Hostiles . | . . . . Follow-up Attacks . | . . . . Damage Inflicted 687 | . 463 211 13 Guns 554 | . 431 113 10 Cannons . | . . . . Explosions 130 | . 32 98 . Melee . | . . . . Ramming 3 | . . . 3 Kinetic 265 | . 228 37 . Thermal 130 | . 32 98 . Explosive . | . . . . Electromagnetic 289 | . 203 76 10 Impact . | . . . . Slashing . | . . . . Piercing . | . . . . Highest Corruption . | . . . . Average Corruption . | . . . . Corruption Purged . | . . . . Corruption Blocked . | . . . . Overload Shots . | . . . . Overflow Damage . | . . . . Projectiles . | . . . . Explosions . | . . . . Melee . | . . . . Knockbacks . | . . . . Impact . | . . . . Kinetic . | . . . . Secondary . | . . . . Self-Inflicted Damage 1 | . . . 1 Shots . | . . . . Rammed 1 | . . . 1 Targets Rammed 1 | . . . 1 Kicked . | . . . . Crushed . | . . . . Highest Temperature 117 | . 117 33 . Average Temperature 29 | . 30 21 . Received Heat Transfer 183 | . 75 39 69 Siege Activations . | . . . . Martial Activations . | . . . . Shielding Activations . | . . . . Robots Disrupted . | . . . . Combat Hostiles . | . . . . Robots Corrupted . | . . . . Combat Hostiles . | . . . . Parts Fried 1 | . 1 . . Impact Corruptions . | . . . . Robots Melted . | . . . . Combat Hostiles . | . . . . Parts Melted . | . . . . Heat Transferred 100 | . . 100 . Parts Sabotaged . | . . . . Parts Stolen . | . . . . Parts Stripped . | . . . . Power Chain Reactions 2 | . 1 1 . Alert | -11 -10 -10 -10 ------- Run | Yrd Mat Min Sub Maximum Alert Level . | . . . . Low Security (%) 100 | 100 100 100 . Level 1 . | . . . . Level 2 . | . . . . Level 3 . | . . . . Level 4 . | . . . . Level 5 . | . . . . High Security . | . . . . Max Security . | . . . . Peak Influence 91 | . 91 63 . Initial 23 | . . 23 . Average 20 | . 32 13 . Influence Increases 457 | . 222 145 90 Destroy 0b10 Robot/C 220 | . 100 120 . Destroy 0b10 Robot/NC 20 | . 15 5 . Destroy Leader 36 | . 26 10 . Allied During Kill 4 | . . 4 . Successful Hack 33 | . 33 . . Disable Machine 15 | . 15 . . Destroy Structure 9 | . 3 6 . Lose Combat Pursuer 120 | . 30 . 90 Influence Decreases 457 | . 162 205 90 Entered New Map 37 | . . 37 . Time Decay 400 | . 162 168 70 Lost Ally 20 | . . . 20 Squads Dispatched 2 | . 1 1 . Investigation . | . . . . Extermination . | . . . . Reinforcement 1 | . 1 . . Assault 1 | . . 1 . Garrison . | . . . . Intercept . | . . . . Searches Triggered . | . . . . Construction Impeded . | . . . . Haulers Reinforced . | . . . . Active Scanning Responses . | . . . . Cargo Convoy Interrupts . | . . . . Stealth | -11 -10 -10 -10 --------- Run | Yrd Mat Min Sub Distress Signals . | . . . . Communications Jammed . | . . . . Distress Signals . | . . . . Times Spotted 40 | . 11 7 22 Peak Tracking Total 11 | . 5 3 11 Tactical Retreats 4 | . 2 . 2 Traps | -11 -10 -10 -10 ------- Run | Yrd Mat Min Sub Traps Triggered 2 | . 1 . 1 Indirectly . | . . . . Trap Hack Attempts . | . . . . Triggered . | . . . . Disarmed . | . . . . Reprogrammed . | . . . . Reused . | . . . . Traps Extracted . | . . . . Installed . | . . . . Triggered . | . . . . Machines | -11 -10 -10 -10 ---------- Run | Yrd Mat Min Sub Machines Disabled 1 | . 1 . . Max in Single Turn 1 | . 1 . . Machines Repaired . | . . . . Machines Dismantled . | . . . . Machines Sabotaged . | . . . . Overloaded Fab Kills . | . . . . Hacking | -11 -10 -10 -10 --------- Run | Yrd Mat Min Sub Machines Accessed 6 | . 6 . . Terminals 5 | . 5 . . Fabricators . | . . . . Repair Stations . | . . . . Recycling Units 1 | . 1 . . Scanalyzers . | . . . . Garrison Access . | . . . . Total Hacks 20 | . 20 . . Successful 8 | . 8 . . Failed 11 | . 11 . . Catastrophic . | . . . . Database Lockouts 1 | . 1 . . Manual 20 | . 20 . . Terminals 16 | . 16 . . Fabricators . | . . . . Repair Stations . | . . . . Recycling Units 4 | . 4 . . Scanalyzers . | . . . . Garrison Access . | . . . . Terminal Hacks 3 | . 3 . . Prototype ID Bank 1 | . 1 . . Branch Access Points 1 | . 1 . . Terminal Index 1 | . 1 . . Fabricator Hacks . | . . . . Repair Station Hacks . | . . . . Recycling Unit Hacks 1 | . 1 . . Report Inventory 1 | . 1 . . Scanalyzer . | . . . . Garrison Access Hacks . | . . . . Unauthorized Hacks 4 | . 4 . . Terminals 2 | . 2 . . Botnet 2 | . 2 . . Fabricators . | . . . . Repair Stations . | . . . . Recycling Units 2 | . 2 . . Monitor 1 | . 1 . . Mask 1 | . 1 . . Scanalyzers . | . . . . Garrison Access . | . . . . Data Cores Recovered . | . . . . Used . | . . . . Hacking Detections 6 | . 6 . . Full Trace Events 1 | . 1 . . Feedback Events . | . . . . Feedback Blocked . | . . . . Robot Schematics Acquired . | . . . . Robots Built . | . . . . Authchips . | . . . . Time . | . . . . Total Robot Build Rating . | . . . . Part Schematics Acquired . | . . . . Parts Built . | . . . . Authchips . | . . . . Time . | . . . . Total Part Build Rating . | . . . . Part Studies Acquired . | . . . . Parts Repaired . | . . . . Time . | . . . . Parts Recycled . | . . . . Recycled Matter . | . . . . Retrieved Matter . | . . . . Retrieved Components . | . . . . Parts Scanalyzed . | . . . . Part Schematics Acquired . | . . . . Parts Damaged . | . . . . Bothacking | -11 -10 -10 -10 ------------ Run | Yrd Mat Min Sub Used RIF Installer . | . . . . Robots Hacked . | . . . . Non-combat . | . . . . Combat . | . . . . Robot Hacks Applied . | . . . . Relay Couplers Released . | . . . . Fabnet Peak Effective % . | . . . . Robots Rewired . | . . . . Allies Hacked . | . . . . Hacks Repelled . | . . . . Allies | -11 -10 -10 -10 -------- Run | Yrd Mat Min Sub Total Allies 1 | . . 1 . Largest Group 1 | . . 1 1 Highest-Rated Group 31 | . . 31 31 Highest-Rated Ally 31 | . . 31 31 Total Orders . | . . . . Ally Attacks 14 | . . 9 5 Total Damage 167 | . . 105 62 Kills 4 | . . 3 1 Allies Corrupted . | . . . . Allies Melted . | . . . . Intel | -11 -10 -10 -10 ------- Run | Yrd Mat Min Sub Active Infowar (turns) . | . . . . Robot Analysis Total . | . . . . Derelict Logs Recovered 2 | . . 1 1 Drone Launches . | . . . . Drone Recoveries . | . . . . Exploration | -11 -10 -10 -10 ------------- Run | Yrd Mat Min Sub Turns Passed 1755 | 60 603 847 245 Spaces Moved 1000 | 34 317 514 135 Core 10 | 4 . . 6 Treads 990 | 30 317 514 129 Legs . | . . . . Wheels . | . . . . Hover . | . . . . Flight . | . . . . Fastest Speed 50 | 50 160 160 100 Average Speed 159 | 147 160 160 158 Slowest Speed 160 | 160 160 160 160 Overloaded Moves . | . . . . Propulsion Burnouts . | . . . . Robots Hopped . | . . . . Potential Cave-ins . | . . . . Cave-ins Triggered . | . . . . Exploration Rate (%) 41 | 4 61 94 8 Regions Visited 3 Branch Regions 2 Pre-discovered Areas 1 | . . . 1 Known Exits Taken 2 | . 1 1 . Unknown Exits Taken 1 | 1 . . . Scrap Searched 1 | . . 1 . Spaces Dug . | . . . . Terrain Destroyed 9 | . 3 6 . Melee . | . . . . Projectile . | . . . . AOE 9 | . 3 6 . Terrain Rammed . | . . . . Walls Destroyed . | . . . . Machines Disabled . | . . . . Actions | -11 -10 -10 -10 --------- Run | Yrd Mat Min Sub Total 1084 | 41 358 523 162 Wait 25 | . 4 1 20 Move 997 | 33 316 513 135 Hop . | . . . . Pick Up 10 | 1 7 1 1 Fast Attach 7 | 6 1 . . Attach . | . . . . Detach . | . . . . Swap 4 | 1 2 . 1 Drop 3 | . 1 . 2 Fire 37 | . 27 8 2 Melee . | . . . . Ram 1 | . . . 1 Kick . | . . . . Crush . | . . . . Escape Stasis . | . . . . Rewire . | . . . . Trap . | . . . . Miscellaneous . | . . . . Route ------- -11/Scrapyard -10/Materials (discovered 3 exits: *Mat x2 / *Min) -10/Mines (discovered 2 exits: *Mat / *Sub) -10/Subcaves (discovered 2 exits: *Mat x2) History --------- Turn | Location | Event 6 | -11/Scrapyard | Discovered new exit (range 15) 61 | -11/Scrapyard | Entered Materials 233 | -10/Materials | Discovered new exit (range 8) 309 | -10/Materials | Build established: Mutant 494 | -10/Materials | Discovered new exit (range 15) 515 | -10/Materials | Identified exit to Materials 531 | -10/Materials | Identified exit to Mines 650 | -10/Materials | Central database locked down 664 | -10/Materials | Entered Mines 665 | -10/Mines | Assembled infested the area 698 | -10/Mines | Found a damaged Exp. Sensor Array with a note attached 701 | -10/Mines | Found Prototype Device 710 | -10/Mines | Met a Derelict bent on vengeance 714 | -10/Mines | Discovered exit to Materials (range 12) 715 | -10/Mines | Met a Derelict testing a Signal Generator 1090 | -10/Mines | Learned 8 Materials zone layouts 1502 | -10/Mines | Discovered new exit (range 6) 1508 | -10/Mines | Identified exit to Subcaves 1511 | -10/Mines | Entered Subcaves 1511 | -10/Subcaves | Accompanied by 1 ally 1511 | -10/Subcaves | Discovered new exit (range 8) 1512 | -10/Subcaves | Approached by a straggling Scientist 1532 | -10/Subcaves | Learned location of Zion (-6) 1532 | -10/Subcaves | Met a Zionite searching for "candidates" 1549 | -10/Subcaves | Identified exit to Materials 1553 | -10/Subcaves | Discovered exit to Materials (range 8) 1683 | -10/Subcaves | Core integrity fell below 50% 1724 | -10/Subcaves | Ambushed by swarm of Subdwellers 1724 | -10/Subcaves | Ambushed by Subdwellers from Twisted Machinery 1724 | -10/Subcaves | Ambushed by Subdwellers from Twisted Machinery 1740 | -10/Subcaves | Learned Materials emergency access door positions 1750 | -10/Subcaves | Core integrity fell below 20% 1756 | -10/Subcaves | Destroyed by DC-POO(R) with Subdweller Beam Cannon Last Messages --------------- Twisted Machinery. 01726_ NE-ELI(R) emerges from the Twisted Machinery. 01729_ HL-3M1(R) emerges from the Twisted Machinery. 01731_ 79-BQS(g): "Sorry we're late! Had another grouchy Sub to deal with. Who's the new fellow?" 01732_ 79-BQS(g) destroyed. [Achievement: Do Not Disturb] 01733_ MX-BPB(R): "SLEEPOVER!" 01740_ Acquired derelict log, extracted data. Data stored: Materials emergency access points. 01744_ EM Pulse Gun destroyed. 01746_ Assault Rifle destroyed. 01751_ Slammed into BF-M2C(R). 01754_ Lgt. Ion Engine destroyed. 01754_ Lgt. Treads destroyed. 01755_ Critical hit (Destroy). 01755_ Lgt. Treads destroyed. Map ----- +----------------------------------------------------+ | ????# ????????## """ #[" < ! #???? | | ????# ???????# ""&&& &%=" # * # #### #???? | | ?#### ###??## " &%& & ###########????? #???? | | " ?# " =[ ####????????????????????? | | " ## "" % ##???????????????????????? | | " " ## #????????????????????????? | | ###"" "## ## ##????????????????????????? | | ?????????##""# ## ####?????????????????????????? | | ??????????##### ##??????????????????????????? | | ?????????????## #??????????????????????????? | | ????????????## ##??????????????????????????? | | ???????????## #####???????????????????????? | | ???????????# ## #???????????????????????? | | ???????????# ;;; #???????????????????????? | | ???????????## !% ; ##???????????????????????? | | ????????????# * ; ##???????????????????????? | | ????????????# # %% ####????????????????????? | | ????????????##? ! ;;;########?????????????? | | ??????????????# ; ; # #?????????????? | | ?????????????# " ^ R "##????????????? | | ?????????????## ##" R=% # ##???????????? | | ??????????????# ^#?## ;R"# ## #???????????? | | ??????????????# ### RRR####### ##???????????? | | ??????????????### R# # ####????????????? | | ????????????????# R% #?????????????? | | ???????????????# @ R #?????????????? | | ??????????????# ### #?????????????? | | ???????????# ###? # #????????????? | | ???????????## ^ #??? %##????????????? | | ????????????### ^ #??# #????????????? | | ??????????????## ##??# ####????????????? | | ???????????????# #####???# #???????????????? | | ?????????????? ????????## ???????????????? | | ????????????? ?????????# ???????????????? | | ????????????# ?????????# ???????????????? | | ????????????## ### ?????????? #??????????????? | | ??????????????##??##?????????? #??????????????? | | ?????????????????????????????? ##??????????????? | | ?????????????????????????????? #????????????????? | | ??????????????????????????????? ?????????????????? | | ?????????????????????????????????????????????????? | | ?????????????????????????????????????????????????? | | ?????????????????????????????????????????????????? | | ?????????????????????????????????????????????????? | | ?????????????????????????????????????????????????? | | ?????????????????????????????????????????????????? | | ?????????????????????????????????????????????????? | | ?????????????????????????????????????????????????? | | ?????????????????????????????????????????????????? | | ?????????????????????????????????????????????????? | +----------------------------------------------------+ Best States ------------- Heat Dissipation 25 Energy Generation 10 Energy Capacity 250 Matter Stores 300 Matter Capacity 300 Sight Range 16 Terrain Scan Density 10 Armor Coverage 150 Evasion (%) 40 Recoil Reduction 2 Item Schematics ----------------- None Robot Schematics ------------------ None Fabricated ------------ Nothing Repaired ---------- Nothing Studied --------- None Alien Tech Used ----------------- None Achievements -------------- Do Not Disturb Challenges ------------ None Game ------ Seed SalvagingDispersalChaingun Manual? 0 Play Time 00:15:04 Cumulative 34.1 hours Start 2026.04.05 @ 02:16:19 End 2026.04.06 @ 00:50:44 Sessions 1 Manual Loads 0 Difficulty Rogue Special Mode None Game No. 42 Rogue 42 Adventurer 0 Explorer 0 Win Type - Total 1 Types 1/0/0/0/0/0/0/0/0/0 Lore% 33 Gallery% 30 Achievement% 26 Wizard Run 0 Options --------- Layout 1 ASCII 0 Keyboard 0 Movement Vi Keybinds 0 Fullscreen 1 Font 24/Smallcaps Map View 50x40 Zoom Use 0% Tactical HUD 1 Map Filters NONE Filters NONE Steam 1 RUN: 77f09ebb-4c4d-46dc-b9b0-11030bcfe8eb